[Event "Late-Titled-Tuesday-Blitz-December-26-2023"]
[Site "Chess.com"]
[Date "2023.12.26"]
[Round "4"]
[White "DinaBelenkaya"]
[Black "Mikhail_Golubev"]
[Result "0-1"]
[WhiteElo "2396"]
[BlackElo "2624"]
[TimeControl "180+1"]
[EndTime "14:40:37 PST"]
[Termination "Mikhail_Golubev won by checkmate"]

1. Nf3 {[%clk 0:03:00.9]} 1... d6 {[%clk 0:02:59.1]} 2. g3 {[%clk 0:03:01.2]}
2... g6 {[%clk 0:02:58.6]} 3. e4 {[%clk 0:03:01.2]} 3... c5 {[%clk 0:02:56.5]}
4. Bg2 {[%clk 0:02:59.7]} 4... Nf6 {[%clk 0:02:53.3]} 5. d3 {[%clk 0:02:57.5]}
5... Bg7 {[%clk 0:02:52.7]} 6. O-O {[%clk 0:02:57.4]} 6... O-O {[%clk
0:02:52.6]} 7. c3 {[%clk 0:02:57.9]} 7... c4 {[%clk 0:02:49.3]} 8. Re1 {[%clk
0:02:51.6]} 8... cxd3 {[%clk 0:02:48.5]} 9. Qxd3 {[%clk 0:02:52.5]} 9... Nbd7
{[%clk 0:02:44]} 10. Nbd2 {[%clk 0:02:49.6]} 10... Nc5 {[%clk 0:02:33.3]} 11.
Qe2 {[%clk 0:02:50]} 11... a6 {[%clk 0:02:29.6]} 12. a4 {[%clk 0:02:48.9]} 12...
Qc7 {[%clk 0:02:23]} 13. b4 {[%clk 0:02:47.9]} 13... Ncd7 {[%clk 0:02:16.3]} 14.
Bb2 {[%clk 0:02:47.7]} 14... b6 {[%clk 0:02:03.6]} 15. c4 {[%clk 0:02:46.4]}
15... Bb7 {[%clk 0:02:01.8]} 16. Rac1 {[%clk 0:02:45.1]} 16... Rac8 {[%clk
0:01:54.7]} 17. Nd4 {[%clk 0:02:42.6]} 17... Qb8 {[%clk 0:01:48.9]} 18. f4
{[%clk 0:02:41.9]} 18... e5 {[%clk 0:01:29.4]} 19. N4b3 {[%clk 0:02:36.3]} 19...
exf4 {[%clk 0:01:23.3]} 20. gxf4 {[%clk 0:02:37.2]} 20... Rfe8 {[%clk
0:01:23.1]} 21. Qd3 {[%clk 0:02:31.6]} 21... b5 {[%clk 0:01:09.7]} 22. cxb5
{[%clk 0:02:24]} 22... Rxc1 {[%clk 0:01:08.7]} 23. Bxc1 {[%clk 0:02:21.4]} 23...
axb5 {[%clk 0:01:07]} 24. Qxb5 {[%clk 0:02:21.7]} 24... Qa7+ {[%clk 0:01:01.7]}
25. Kh1 {[%clk 0:02:04.5]} 25... Ng4 {[%clk 0:00:45.4]} 26. Nc5 {[%clk
0:02:03.8]} 26... dxc5 {[%clk 0:00:36.3]} 27. Qxd7 {[%clk 0:02:03.5]} 27... Nf6
{[%clk 0:00:30.6]} 28. Qb5 {[%clk 0:01:35.2]} 28... cxb4 {[%clk 0:00:30.7]} 29.
e5 {[%clk 0:01:25.6]} 29... Bxg2+ {[%clk 0:00:30.1]} 30. Kxg2 {[%clk 0:01:26.5]}
30... Qa8+ {[%clk 0:00:29.3]} 31. Nf3 {[%clk 0:01:24]} 31... Nd5 {[%clk
0:00:26.2]} 32. Rd1 {[%clk 0:01:22.1]} 32... Nc3 {[%clk 0:00:25.7]} 33. Qd3
{[%clk 0:01:17.9]} 33... Nxd1 {[%clk 0:00:25.7]} 34. Qxd1 {[%clk 0:01:18.8]}
34... Qe4 {[%clk 0:00:25]} 35. a5 {[%clk 0:01:12.5]} 35... Rc8 {[%clk 0:00:24]}
36. a6 {[%clk 0:01:00.1]} 36... Ra8 {[%clk 0:00:21.4]} 37. Qa4 {[%clk
0:00:59.2]} 37... Qe2+ {[%clk 0:00:19.8]} 38. Kg3 {[%clk 0:00:59.5]} 38... Qxa6
{[%clk 0:00:18.6]} 39. Qb3 {[%clk 0:00:49.9]} 39... Qa4 {[%clk 0:00:15.7]} 40.
Qd5 {[%clk 0:00:48.2]} 40... Qe8 {[%clk 0:00:12.7]} 41. Ng5 {[%clk 0:00:44.8]}
41... Rd8 {[%clk 0:00:12.3]} 42. Qc4 {[%clk 0:00:43.8]} 42... Rc8 {[%clk
0:00:11.4]} 43. Qf1 {[%clk 0:00:37.7]} 43... h6 {[%clk 0:00:11.2]} 44. Ne4
{[%clk 0:00:36.8]} 44... Qe6 {[%clk 0:00:10.9]} 45. Be3 {[%clk 0:00:30.3]} 45...
b3 {[%clk 0:00:10.5]} 46. Qb5 {[%clk 0:00:29.3]} 46... Rc2 {[%clk 0:00:08.8]}
47. Qb8+ {[%clk 0:00:23.4]} 47... Kh7 {[%clk 0:00:08.1]} 48. Bd4 {[%clk
0:00:23.3]} 48... Qd5 {[%clk 0:00:06]} 49. Kf3 {[%clk 0:00:05.4]} 49... Qxd4
{[%clk 0:00:05]} 50. Qxb3 {[%clk 0:00:06.2]} 50... Rb2 {[%clk 0:00:03.5]} 51.
Qe3 {[%clk 0:00:04.9]} 51... Qxe3+ {[%clk 0:00:03.3]} 52. Kxe3 {[%clk
0:00:05.8]} 52... Rb3+ {[%clk 0:00:03.2]} 53. Kd4 {[%clk 0:00:06.6]} 53... Rb4+
{[%clk 0:00:03.3]} 54. Kd5 {[%clk 0:00:07.4]} 54... Rxe4 {[%clk 0:00:03.7]} 55.
Kxe4 {[%clk 0:00:07.5]} 55... Kg8 {[%clk 0:00:04.3]} 56. h3 {[%clk 0:00:08.4]}
56... Kf8 {[%clk 0:00:04.6]} 57. Kd5 {[%clk 0:00:09.3]} 57... Ke7 {[%clk
0:00:05]} 58. Kd4 {[%clk 0:00:10.2]} 58... Ke6 {[%clk 0:00:05.1]} 59. Ke4 {[%clk
0:00:11.1]} 59... f6 {[%clk 0:00:05.3]} 60. Ke3 {[%clk 0:00:12]} 60... f5 {[%clk
0:00:05]} 61. Kf3 {[%clk 0:00:12.9]} 61... g5 {[%clk 0:00:04.8]} 62. fxg5 {[%clk
0:00:12.9]} 62... hxg5 {[%clk 0:00:04.5]} 63. h4 {[%clk 0:00:12.7]} 63... g4+
{[%clk 0:00:04.4]} 64. Kf4 {[%clk 0:00:12.8]} 64... Bxe5+ {[%clk 0:00:04.9]} 65.
Ke3 {[%clk 0:00:12.9]} 65... g3 {[%clk 0:00:04.8]} 66. Kf3 {[%clk 0:00:13.1]}
66... f4 {[%clk 0:00:05]} 67. h5 {[%clk 0:00:13.5]} 67... Kf5 {[%clk 0:00:05.2]}
68. h6 {[%clk 0:00:14.1]} 68... Bf6 {[%clk 0:00:05.5]} 69. h7 {[%clk 0:00:14.4]}
69... Be5 {[%clk 0:00:06.1]} 70. Kg2 {[%clk 0:00:14.4]} 70... Bh8 {[%clk
0:00:05.8]} 71. Kf3 {[%clk 0:00:14.8]} 71... Bg7 {[%clk 0:00:06.3]} 72. Kg2
{[%clk 0:00:15]} 72... Kg4 {[%clk 0:00:06.4]} 73. Kf1 {[%clk 0:00:15.3]} 73...
f3 {[%clk 0:00:06.7]} 74. Kg1 {[%clk 0:00:16.2]} 74... g2 {[%clk 0:00:06.6]} 75.
Kh2 {[%clk 0:00:16.1]} 75... Be5+ {[%clk 0:00:06.3]} 76. Kg1 {[%clk 0:00:16.3]}
76... Bd4+ {[%clk 0:00:06.9]} 77. Kh2 {[%clk 0:00:16.4]} 77... g1=Q# {[%clk
0:00:07.1]} 0-1

[Event "Late-Titled-Tuesday-Blitz-December-26-2023"]
[Site "Chess.com"]
[Date "2023.12.26"]
[Round "4"]
[White "ilya2700"]
[Black "Nathan_Filgueiras"]
[Result "1-0"]
[WhiteElo "2369"]
[BlackElo "2567"]
[TimeControl "180+1"]
[EndTime "14:40:38 PST"]
[Termination "ilya2700 won by resignation"]

1. e4 {[%clk 0:03:00.1]} 1... c5 {[%clk 0:02:59.9]} 2. c4 {[%clk 0:03:00.1]}
2... Nc6 {[%clk 0:03:00.1]} 3. Ne2 {[%clk 0:02:59.7]} 3... e5 {[%clk 0:02:52.9]}
4. Nbc3 {[%clk 0:02:58.7]} 4... g6 {[%clk 0:02:53.1]} 5. d3 {[%clk 0:02:58.9]}
5... Bg7 {[%clk 0:02:53.8]} 6. g3 {[%clk 0:02:59.4]} 6... h5 {[%clk 0:02:53.3]}
7. h4 {[%clk 0:02:58.6]} 7... d6 {[%clk 0:02:53.2]} 8. Bg2 {[%clk 0:02:58.5]}
8... Bg4 {[%clk 0:02:52.5]} 9. Be3 {[%clk 0:02:57]} 9... Nge7 {[%clk 0:02:51.9]}
10. Qd2 {[%clk 0:02:56.1]} 10... Nd4 {[%clk 0:02:51.9]} 11. O-O {[%clk
0:02:49.4]} 11... Nf3+ {[%clk 0:02:50.6]} 12. Bxf3 {[%clk 0:02:48]} 12... Bxf3
{[%clk 0:02:51.5]} 13. Nd5 {[%clk 0:02:38.9]} 13... Nxd5 {[%clk 0:02:36.3]} 14.
cxd5 {[%clk 0:02:39.8]} 14... O-O {[%clk 0:02:30.9]} 15. Kh2 {[%clk 0:02:31.9]}
15... b5 {[%clk 0:02:28.6]} 16. Ng1 {[%clk 0:02:25.8]} 16... Bg4 {[%clk
0:02:28]} 17. Bh6 {[%clk 0:02:25.2]} 17... a5 {[%clk 0:02:18.6]} 18. Bxg7 {[%clk
0:02:22.8]} 18... Kxg7 {[%clk 0:02:19.5]} 19. f4 {[%clk 0:02:22.8]} 19... f6
{[%clk 0:02:17.2]} 20. Nf3 {[%clk 0:02:17.6]} 20... a4 {[%clk 0:02:12.1]} 21.
fxe5 {[%clk 0:02:14.8]} 21... fxe5 {[%clk 0:02:12]} 22. Ng5 {[%clk 0:02:14]}
22... Qd7 {[%clk 0:02:06.7]} 23. Qg2 {[%clk 0:02:09]} 23... a3 {[%clk
0:02:04.3]} 24. bxa3 {[%clk 0:02:00.2]} 24... Qa7 {[%clk 0:01:59.6]} 25. Rxf8
{[%clk 0:01:40.9]} 25... Rxf8 {[%clk 0:01:58.3]} 26. Rf1 {[%clk 0:01:41.5]}
26... Qa8 {[%clk 0:01:44]} 27. Rf2 {[%clk 0:01:26.2]} 27... Rxf2 {[%clk
0:01:42.6]} 28. Qxf2 {[%clk 0:01:27.1]} 28... Qf8 {[%clk 0:01:42.7]} 29. Qb2
{[%clk 0:01:03.6]} 29... Bd7 {[%clk 0:01:23.6]} 30. Kg2 {[%clk 0:00:54.3]} 30...
Qa8 {[%clk 0:01:04.6]} 31. Qf2 {[%clk 0:00:50.8]} 31... Qf8 {[%clk 0:01:02.7]}
32. Qb2 {[%clk 0:00:49.7]} 32... Qe8 {[%clk 0:00:58.8]} 33. Qf2 {[%clk 0:00:42]}
33... Bg4 {[%clk 0:00:57.2]} 34. Qb2 {[%clk 0:00:38.4]} 34... Qd7 {[%clk
0:00:50]} 35. Qf2 {[%clk 0:00:34.2]} 35... Qe7 {[%clk 0:00:48.3]} 36. Qb2 {[%clk
0:00:31.9]} 36... Bd7 {[%clk 0:00:48.9]} 37. Qf2 {[%clk 0:00:29.2]} 37... Qe8
{[%clk 0:00:40.3]} 38. Qb2 {[%clk 0:00:27.3]} 38... Qe7 {[%clk 0:00:32.6]} 39.
Qf2 {[%clk 0:00:25.5]} 39... Be8 {[%clk 0:00:33.2]} 40. Ne6+ {[%clk 0:00:23.7]}
40... Kg8 {[%clk 0:00:32.9]} 41. Qe3 {[%clk 0:00:20.6]} 41... Bf7 {[%clk
0:00:28.3]} 42. Ng5 {[%clk 0:00:20.7]} 42... Be8 {[%clk 0:00:28.4]} 43. Ne6
{[%clk 0:00:20.5]} 43... Bd7 {[%clk 0:00:28.4]} 44. Ng5 {[%clk 0:00:17.1]} 44...
Qf8 {[%clk 0:00:24.9]} 45. Qd2 {[%clk 0:00:13]} 45... Qa8 {[%clk 0:00:20]} 46.
Qf2 {[%clk 0:00:12.5]} 46... Qf8 {[%clk 0:00:20.3]} 47. Qb2 {[%clk 0:00:11.8]}
47... Be8 {[%clk 0:00:20.7]} 48. Ne6 {[%clk 0:00:10.5]} 48... Qe7 {[%clk
0:00:20.9]} 49. Qf2 {[%clk 0:00:09.9]} 49... Bd7 {[%clk 0:00:10.4]} 50. Ng5
{[%clk 0:00:09.8]} 50... Bc8 {[%clk 0:00:10.7]} 51. Qb2 {[%clk 0:00:09.1]} 51...
Ba6 {[%clk 0:00:11.1]} 52. Qf2 {[%clk 0:00:09]} 52... b4 {[%clk 0:00:07.3]} 53.
axb4 {[%clk 0:00:09.2]} 53... cxb4 {[%clk 0:00:08.2]} 54. Qb6 {[%clk 0:00:05.8]}
54... Bxd3 {[%clk 0:00:06.2]} 55. Qxb4 {[%clk 0:00:05.3]} 55... Ba6 {[%clk
0:00:05.8]} 56. Qb8+ {[%clk 0:00:05]} 56... Kg7 {[%clk 0:00:05.7]} 57. Ne6+
{[%clk 0:00:05.1]} 57... Kh7 {[%clk 0:00:06.3]} 58. Qc7 {[%clk 0:00:02.8]} 58...
Qxc7 {[%clk 0:00:04.4]} 59. Nxc7 {[%clk 0:00:03.7]} 59... Bd3 {[%clk 0:00:05.3]}
60. Kf3 {[%clk 0:00:02.7]} 60... Kg7 {[%clk 0:00:05.7]} 61. a4 {[%clk
0:00:03.3]} 61... Kf7 {[%clk 0:00:06]} 62. a5 {[%clk 0:00:03.9]} 62... Ke7
{[%clk 0:00:06.7]} 63. a6 {[%clk 0:00:04.5]} 63... Kd7 {[%clk 0:00:07.4]} 64. a7
{[%clk 0:00:04.7]} 1-0

[Event "Late-Titled-Tuesday-Blitz-December-26-2023"]
[Site "Chess.com"]
[Date "2023.12.26"]
[Round "4"]
[White "Byniolus"]
[Black "prime-morty"]
[Result "1-0"]
[WhiteElo "2811"]
[BlackElo "2543"]
[TimeControl "180+1"]
[EndTime "14:40:39 PST"]
[Termination "Byniolus won by resignation"]

1. d4 {[%clk 0:03:00.9]} 1... d6 {[%clk 0:02:59.4]} 2. Nf3 {[%clk 0:03:00.8]}
2... g6 {[%clk 0:02:59.6]} 3. Bf4 {[%clk 0:03:01]} 3... Bg7 {[%clk 0:03:00.1]}
4. e3 {[%clk 0:03:01.8]} 4... Nd7 {[%clk 0:03:00.3]} 5. h3 {[%clk 0:03:02.5]}
5... e5 {[%clk 0:03:00.1]} 6. Bh2 {[%clk 0:03:03.4]} 6... exd4 {[%clk
0:02:58.3]} 7. exd4 {[%clk 0:03:03.4]} 7... Ne7 {[%clk 0:02:58.5]} 8. Be2 {[%clk
0:03:03.7]} 8... O-O {[%clk 0:02:59]} 9. O-O {[%clk 0:03:04.4]} 9... Nf5 {[%clk
0:02:57.8]} 10. c3 {[%clk 0:03:04.6]} 10... Re8 {[%clk 0:02:57.1]} 11. Nbd2
{[%clk 0:03:04.1]} 11... Nh4 {[%clk 0:02:52.6]} 12. Re1 {[%clk 0:03:00.6]} 12...
Nb6 {[%clk 0:02:46.5]} 13. Nxh4 {[%clk 0:02:48.9]} 13... Qxh4 {[%clk 0:02:46.2]}
14. Bf3 {[%clk 0:02:49.8]} 14... Qd8 {[%clk 0:02:32.3]} 15. a4 {[%clk
0:02:38.4]} 15... Rb8 {[%clk 0:02:31.1]} 16. a5 {[%clk 0:02:35.2]} 16... Nd7
{[%clk 0:02:30.5]} 17. Nc4 {[%clk 0:02:17.8]} 17... Nf8 {[%clk 0:02:07.4]} 18.
Qd2 {[%clk 0:01:51.2]} 18... Rxe1+ {[%clk 0:02:06.3]} 19. Rxe1 {[%clk
0:01:50.5]} 19... a6 {[%clk 0:02:05.7]} 20. b4 {[%clk 0:01:39.1]} 20... Ne6
{[%clk 0:02:00.4]} 21. Bg3 {[%clk 0:01:29.1]} 21... Ng5 {[%clk 0:01:55.4]} 22.
Bd1 {[%clk 0:01:07.5]} 22... Be6 {[%clk 0:01:48]} 23. Bb3 {[%clk 0:00:35.9]}
23... Bd5 {[%clk 0:01:35.4]} 24. Qd3 {[%clk 0:00:19.1]} 24... Qf6 {[%clk
0:01:29.1]} 25. Nd2 {[%clk 0:00:14.4]} 25... Bxb3 {[%clk 0:01:25.8]} 26. Nxb3
{[%clk 0:00:15.3]} 26... h5 {[%clk 0:01:12.8]} 27. Nd2 {[%clk 0:00:13.8]} 27...
Ne6 {[%clk 0:01:10.4]} 28. Qf3 {[%clk 0:00:10.3]} 28... Qxf3 {[%clk 0:01:10]}
29. Nxf3 {[%clk 0:00:11.2]} 29... d5 {[%clk 0:01:06.5]} 30. Be5 {[%clk
0:00:08.9]} 30... Bh6 {[%clk 0:01:03.7]} 31. g4 {[%clk 0:00:08.1]} 31... hxg4
{[%clk 0:01:03.3]} 32. hxg4 {[%clk 0:00:09]} 32... Rc8 {[%clk 0:01:03.2]} 33.
Kg2 {[%clk 0:00:08.5]} 33... c6 {[%clk 0:01:02.6]} 34. Kg3 {[%clk 0:00:08.5]}
34... Ng5 {[%clk 0:01:01.4]} 35. Nxg5 {[%clk 0:00:07.1]} 35... Bxg5 {[%clk
0:01:02.3]} 36. f4 {[%clk 0:00:05.9]} 36... Bh6 {[%clk 0:00:59.3]} 37. g5 {[%clk
0:00:04.6]} 37... Bg7 {[%clk 0:00:59.4]} 38. Bxg7 {[%clk 0:00:04.7]} 38... Kxg7
{[%clk 0:00:59.6]} 39. Re7 {[%clk 0:00:05.4]} 39... Rb8 {[%clk 0:01:00]} 40. Rc7
{[%clk 0:00:04.6]} 40... Kf8 {[%clk 0:01:00.3]} 41. f5 {[%clk 0:00:04.8]} 41...
gxf5 {[%clk 0:01:00.2]} 42. Kf4 {[%clk 0:00:05.6]} 42... Kg7 {[%clk 0:01:00.5]}
43. Kxf5 {[%clk 0:00:05.8]} 43... b6 {[%clk 0:00:50.4]} 44. axb6 {[%clk
0:00:03.1]} 44... Rxb6 {[%clk 0:00:50.4]} 45. g6 {[%clk 0:00:03.9]} 45... Kg8
{[%clk 0:00:42]} 46. Rxf7 {[%clk 0:00:02.5]} 46... a5 {[%clk 0:00:41.2]} 47.
bxa5 {[%clk 0:00:03.1]} 47... Ra6 {[%clk 0:00:41.4]} 48. Rc7 {[%clk 0:00:02.9]}
48... Rxa5 {[%clk 0:00:39.9]} 49. Kf6 {[%clk 0:00:03.4]} 49... Ra8 {[%clk
0:00:39.4]} 50. Rxc6 {[%clk 0:00:03.8]} 50... Rd8 {[%clk 0:00:39.8]} 51. Kg5
{[%clk 0:00:03]} 51... Re8 {[%clk 0:00:38.9]} 52. Kh6 {[%clk 0:00:03.1]} 52...
Rd8 {[%clk 0:00:37.6]} 53. Rc7 {[%clk 0:00:03.4]} 53... Kf8 {[%clk 0:00:37.9]}
54. Rh7 {[%clk 0:00:02.8]} 54... Kg8 {[%clk 0:00:38.2]} 55. Rc7 {[%clk
0:00:02.7]} 55... Kf8 {[%clk 0:00:37.8]} 56. Rg7 {[%clk 0:00:02.1]} 56... Rc8
{[%clk 0:00:34.1]} 57. Rf7+ {[%clk 0:00:02.3]} 57... Kg8 {[%clk 0:00:34.1]} 58.
Rd7 {[%clk 0:00:01.1]} 58... Kf8 {[%clk 0:00:34.3]} 59. Rxd5 {[%clk 0:00:01.4]}
59... Rxc3 {[%clk 0:00:34.6]} 60. g7+ {[%clk 0:00:02.1]} 60... Kf7 {[%clk
0:00:34.4]} 61. Rf5+ {[%clk 0:00:02.5]} 61... Ke6 {[%clk 0:00:34.2]} 62. g8=Q+
{[%clk 0:00:03]} 62... Kxf5 {[%clk 0:00:34.7]} 63. Qg6+ {[%clk 0:00:03]} 63...
Kf4 {[%clk 0:00:34.2]} 64. Qg5+ {[%clk 0:00:03.5]} 64... Ke4 {[%clk 0:00:34.2]}
65. Qe5+ {[%clk 0:00:03.8]} 65... Kd3 {[%clk 0:00:33.1]} 66. d5 {[%clk
0:00:04.2]} 66... Rc4 {[%clk 0:00:33.3]} 67. d6 {[%clk 0:00:04.2]} 67... Rh4+
{[%clk 0:00:33.5]} 68. Kg5 {[%clk 0:00:04.3]} 68... Rd4 {[%clk 0:00:25.6]} 69.
Qxd4+ {[%clk 0:00:04.3]} 1-0

[Event "Late-Titled-Tuesday-Blitz-December-26-2023"]
[Site "Chess.com"]
[Date "2023.12.26"]
[Round "4"]
[White "sebastianmarinp"]
[Black "marvinguevara"]
[Result "1/2-1/2"]
[WhiteElo "2453"]
[BlackElo "2240"]
[TimeControl "180+1"]
[EndTime "14:40:39 PST"]
[Termination "Game drawn by repetition"]

1. d4 {[%clk 0:03:00.9]} 1... Nf6 {[%clk 0:02:59.8]} 2. c4 {[%clk 0:03:00.4]}
2... e6 {[%clk 0:02:59.9]} 3. Nf3 {[%clk 0:02:59.4]} 3... Bb4+ {[%clk
0:02:59.5]} 4. Bd2 {[%clk 0:02:58]} 4... Qe7 {[%clk 0:02:56.3]} 5. a3 {[%clk
0:02:56.7]} 5... Bxd2+ {[%clk 0:02:55.8]} 6. Qxd2 {[%clk 0:02:57.6]} 6... d5
{[%clk 0:02:55.2]} 7. e3 {[%clk 0:02:56]} 7... O-O {[%clk 0:02:54.3]} 8. Nc3
{[%clk 0:02:55.7]} 8... b6 {[%clk 0:02:46.7]} 9. cxd5 {[%clk 0:02:53.4]} 9...
exd5 {[%clk 0:02:45.9]} 10. Bd3 {[%clk 0:02:53.3]} 10... Bb7 {[%clk 0:02:45.7]}
11. O-O {[%clk 0:02:52.6]} 11... Ne4 {[%clk 0:02:45.4]} 12. Qc2 {[%clk
0:02:50.1]} 12... Nd7 {[%clk 0:02:41.4]} 13. Rac1 {[%clk 0:02:46.1]} 13... Ndf6
{[%clk 0:02:40.7]} 14. Ne5 {[%clk 0:02:43.2]} 14... c5 {[%clk 0:02:35.7]} 15.
Na4 {[%clk 0:02:13]} 15... Rac8 {[%clk 0:02:28]} 16. Qe2 {[%clk 0:02:02.9]}
16... c4 {[%clk 0:02:18.8]} 17. Bb1 {[%clk 0:02:02.3]} 17... b5 {[%clk
0:02:17.3]} 18. Nc3 {[%clk 0:01:44.5]} 18... Nxc3 {[%clk 0:02:12.2]} 19. Rxc3
{[%clk 0:01:41.4]} 19... a5 {[%clk 0:02:09.3]} 20. f4 {[%clk 0:01:30.2]} 20...
b4 {[%clk 0:02:08.4]} 21. axb4 {[%clk 0:01:30.4]} 21... axb4 {[%clk 0:02:09.3]}
22. Rcc1 {[%clk 0:01:30]} 22... c3 {[%clk 0:02:03.2]} 23. bxc3 {[%clk
0:01:29.4]} 23... bxc3 {[%clk 0:02:02.3]} 24. Bd3 {[%clk 0:01:19.9]} 24... Ne4
{[%clk 0:02:00]} 25. Bxe4 {[%clk 0:01:04.9]} 25... dxe4 {[%clk 0:02:00.9]} 26.
Qa2 {[%clk 0:00:58.3]} 26... Ra8 {[%clk 0:01:52.7]} 27. Qb3 {[%clk 0:00:54.3]}
27... Ra3 {[%clk 0:01:50.7]} 28. Qb6 {[%clk 0:00:50.6]} 28... Rc8 {[%clk
0:01:47.6]} 29. Rc2 {[%clk 0:00:47.5]} 29... Ba6 {[%clk 0:01:42.4]} 30. Rfc1
{[%clk 0:00:44.7]} 30... Bd3 {[%clk 0:01:39.3]} 31. Nc6 {[%clk 0:00:36.6]} 31...
Qc7 {[%clk 0:01:13.6]} 32. Qxc7 {[%clk 0:00:34.4]} 32... Rxc7 {[%clk 0:01:13.5]}
33. Rxc3 {[%clk 0:00:34]} 33... Rxc3 {[%clk 0:01:08.7]} 34. Rxc3 {[%clk
0:00:34.9]} 34... h5 {[%clk 0:01:00.4]} 35. Rc5 {[%clk 0:00:24.9]} 35... h4
{[%clk 0:00:52.6]} 36. Ne5 {[%clk 0:00:21]} 36... Rb7 {[%clk 0:00:50.4]} 37. h3
{[%clk 0:00:17.4]} 37... Rb1+ {[%clk 0:00:47.5]} 38. Kh2 {[%clk 0:00:17.1]}
38... Re1 {[%clk 0:00:47.7]} 39. Rc8+ {[%clk 0:00:10.1]} 39... Kh7 {[%clk
0:00:47.3]} 40. Nxf7 {[%clk 0:00:11]} 40... Rxe3 {[%clk 0:00:46.6]} 41. Ng5+
{[%clk 0:00:11.3]} 41... Kg6 {[%clk 0:00:45.4]} 42. d5 {[%clk 0:00:11.4]} 42...
Bf1 {[%clk 0:00:38.7]} 43. d6 {[%clk 0:00:11.1]} 43... Bb5 {[%clk 0:00:26.6]}
44. Rc5 {[%clk 0:00:10.3]} 44... Bd7 {[%clk 0:00:24.3]} 45. Rc7 {[%clk
0:00:10.5]} 45... Bf5 {[%clk 0:00:20.5]} 46. Re7 {[%clk 0:00:09.5]} 46... Rd3
{[%clk 0:00:20.2]} 47. Nxe4 {[%clk 0:00:09.5]} 47... Bxe4 {[%clk 0:00:20.4]} 48.
Rxe4 {[%clk 0:00:10.3]} 48... Rxd6 {[%clk 0:00:21]} 49. Re5 {[%clk 0:00:09]}
49... Rd4 {[%clk 0:00:19.7]} 50. Rg5+ {[%clk 0:00:09.3]} 50... Kf6 {[%clk
0:00:19.3]} 51. Rg4 {[%clk 0:00:09.4]} 51... Kf5 {[%clk 0:00:17.3]} 52. Rxh4
{[%clk 0:00:08.5]} 52... g5 {[%clk 0:00:17.5]} 53. g4+ {[%clk 0:00:04.4]} 53...
Kxf4 {[%clk 0:00:16.3]} 54. Rh8 {[%clk 0:00:04.7]} 54... Rd2+ {[%clk 0:00:16.2]}
55. Kg1 {[%clk 0:00:05]} 55... Kg3 {[%clk 0:00:16.5]} 56. Kf1 {[%clk 0:00:04.9]}
56... Rh2 {[%clk 0:00:16.3]} 57. Rh5 {[%clk 0:00:04.9]} 57... Kf4 {[%clk
0:00:16.2]} 58. Kg1 {[%clk 0:00:04.6]} 58... Rb2 {[%clk 0:00:16]} 59. Kf1 {[%clk
0:00:04.1]} 59... Rh2 {[%clk 0:00:13.7]} 60. Kg1 {[%clk 0:00:03.9]} 60... Ra2
{[%clk 0:00:14.1]} 61. Kf1 {[%clk 0:00:04.5]} 61... Rb2 {[%clk 0:00:13.5]} 62.
h4 {[%clk 0:00:04]} 62... Kxg4 {[%clk 0:00:12.9]} 63. Rxg5+ {[%clk 0:00:03.8]}
63... Kxh4 {[%clk 0:00:13.4]} 64. Rg8 {[%clk 0:00:04.3]} 64... Ra2 {[%clk
0:00:12.5]} 65. Ke1 {[%clk 0:00:04]} 65... Rb2 {[%clk 0:00:12.9]} 66. Kd1 {[%clk
0:00:04.4]} 66... Ra2 {[%clk 0:00:13.3]} 67. Rh8+ {[%clk 0:00:04.9]} 67... Kg4
{[%clk 0:00:12.9]} 68. Rg8+ {[%clk 0:00:05.6]} 68... Kh4 {[%clk 0:00:13.3]} 69.
Rh8+ {[%clk 0:00:06.1]} 69... Kg4 {[%clk 0:00:13.7]} 70. Rg8+ {[%clk 0:00:07]}
70... Kh4 {[%clk 0:00:14.1]} 1/2-1/2